[Event "Titled Tuesday Blitz February 28 Early 2023"]
[White "Jakubowski, Krzysztof"]
[Black "Goltseva, Ekaterina"]
[WhiteFideId "1112848"]
[BlackFideId "24173770"]
[WhiteElo "2359"]
[BlackElo "2200"]
[Result "0-1"]
[Round "06"]
[TimeControl "180+2"]
[Date "2023.02.28"]
[WhiteClock "0:00:01"]
[BlackClock "0:00:19"]

1. c4 {[%clk 0:03:00]}  Nf6 {[%clk 0:02:51]} 2. d4 {[%clk 0:02:58]}  e6 {[%clk 0:02:50]} 3. Nc3 {[%clk 0:02:57]}  d5 {[%clk 0:02:47]} 4. cxd5 {[%clk 0:02:55]}  exd5 {[%clk 0:02:47]} 5. Bg5 {[%clk 0:02:54]}  c6 {[%clk 0:02:45]} 6. e3 {[%clk 0:02:53]}  Be7 {[%clk 0:02:44]} 7. Bd3 {[%clk 0:02:51]}  h6 {[%clk 0:02:44]} 8. Bf4 {[%clk 0:02:50]}  O-O {[%clk 0:02:41]} 9. Nf3 {[%clk 0:02:45]}  Nbd7 {[%clk 0:02:35]} 10. h3 {[%clk 0:02:43]}  Re8 {[%clk 0:02:35]} 11. O-O {[%clk 0:02:41]}  b5 {[%clk 0:02:34]} 12. Rc1 {[%clk 0:02:37]}  a5 {[%clk 0:02:22]} 13. Ne2 {[%clk 0:02:32]}  Bb7 {[%clk 0:02:17]} 14. Ng3 {[%clk 0:02:25]}  Qb6 {[%clk 0:02:09]} 15. Nf5 {[%clk 0:02:22]}  Bf8 {[%clk 0:02:09]} 16. Ne5 {[%clk 0:02:21]}  Nxe5 {[%clk 0:02:08]} 17. dxe5 {[%clk 0:02:15]}  Ne4 {[%clk 0:01:59]} 18. Qg4 {[%clk 0:02:06]}  Kh8 {[%clk 0:01:55]} 19. Bxe4 {[%clk 0:01:58]}  dxe4 {[%clk 0:01:54]} 20. Nd6 {[%clk 0:01:05]}  Bxd6 {[%clk 0:01:44]} 21. exd6 {[%clk 0:01:04]}  Rad8 {[%clk 0:01:43]} 22. Rfd1 {[%clk 0:01:04]}  Re6 {[%clk 0:01:37]} 23. Qf5 {[%clk 0:00:58]}  Kg8 {[%clk 0:01:31]} 24. h4 {[%clk 0:00:54]}  Bc8 {[%clk 0:01:31]} 25. Qc5 {[%clk 0:00:52]}  Qxc5 {[%clk 0:01:29]} 26. Rxc5 {[%clk 0:00:53]}  Bd7 {[%clk 0:01:29]} 27. b3 {[%clk 0:00:52]}  Kh7 {[%clk 0:01:26]} 28. Rd4 {[%clk 0:00:47]}  g6 {[%clk 0:01:24]} 29. a4 {[%clk 0:00:46]}  Rb8 {[%clk 0:01:19]} 30. Rd2 {[%clk 0:00:40]}  Ree8 {[%clk 0:01:12]} 31. axb5 {[%clk 0:00:39]}  Rxb5 {[%clk 0:01:12]} 32. Rdc2 {[%clk 0:00:37]}  Rxb3 {[%clk 0:01:10]} 33. Rxa5 {[%clk 0:00:37]}  Rb7 {[%clk 0:01:10]} 34. Be5 {[%clk 0:00:28]}  f5 {[%clk 0:01:05]} 35. Rca2 {[%clk 0:00:21]}  Kg8 {[%clk 0:01:00]} 36. Bf4 {[%clk 0:00:17]}  Kg7 {[%clk 0:00:58]} 37. Ra7 {[%clk 0:00:17]}  Reb8 {[%clk 0:00:54]} 38. Rxb7 {[%clk 0:00:17]}  Rxb7 {[%clk 0:00:55]} 39. Ra8 {[%clk 0:00:16]}  h5 {[%clk 0:00:52]} 40. Be5+ {[%clk 0:00:15]}  Kf7 {[%clk 0:00:53]} 41. Rh8 {[%clk 0:00:13]}  Ke6 {[%clk 0:00:52]} 42. Bf4 {[%clk 0:00:12]}  c5 {[%clk 0:00:48]} 43. Rh7 {[%clk 0:00:07]}  c4 {[%clk 0:00:47]} 44. Re7+ {[%clk 0:00:07]}  Kd5 {[%clk 0:00:47]} 45. Be5 {[%clk 0:00:07]}  Kc6 {[%clk 0:00:42]} 46. Kh2 {[%clk 0:00:07]}  Rb3 {[%clk 0:00:40]} 47. Rg7 {[%clk 0:00:06]}  c3 {[%clk 0:00:39]} 48. Bxc3 {[%clk 0:00:07]}  Rxc3 {[%clk 0:00:39]} 49. Rxg6 {[%clk 0:00:07]}  Rd3 {[%clk 0:00:39]} 50. Rh6 {[%clk 0:00:06]}  Rxd6 {[%clk 0:00:34]} 51. Rxh5 {[%clk 0:00:06]}  Rg6 {[%clk 0:00:34]} 52. Rg5 {[%clk 0:00:05]}  Rh6 {[%clk 0:00:32]} 53. Kg3 {[%clk 0:00:05]}  Kd6 {[%clk 0:00:32]} 54. Rg7 {[%clk 0:00:05]}  Be6 {[%clk 0:00:30]} 55. Ra7 {[%clk 0:00:04]}  Ke5 {[%clk 0:00:30]} 56. Ra5+ {[%clk 0:00:04]}  Kf6 {[%clk 0:00:30]} 57. Ra6 {[%clk 0:00:03]}  Rg6+ {[%clk 0:00:30]} 58. Kh2 {[%clk 0:00:04]}  Rg4 {[%clk 0:00:30]} 59. Kh3 {[%clk 0:00:03]}  Rg8 {[%clk 0:00:23]} 60. Rb6 {[%clk 0:00:02]}  Kf7 {[%clk 0:00:23]} 61. Kh2 {[%clk 0:00:02]}  Rh8 {[%clk 0:00:22]} 62. Kg3 {[%clk 0:00:02]}  Bd7 {[%clk 0:00:21]} 63. Kh2 {[%clk 0:00:02]}  Rxh4+ {[%clk 0:00:20]} 64. Kg3 {[%clk 0:00:02]}  Rg4+ {[%clk 0:00:20]} 65. Kh2 {[%clk 0:00:03]}  Rg8 {[%clk 0:00:20]} 66. Rd6 {[%clk 0:00:03]}  Ke7 {[%clk 0:00:20]} 67. Rb6 {[%clk 0:00:03]}  Be6 {[%clk 0:00:21]} 68. Rb7+ {[%clk 0:00:02]}  Kf6 {[%clk 0:00:22]} 69. Rb6 {[%clk 0:00:03]}  Ke5 {[%clk 0:00:22]} 70. Rb5+ {[%clk 0:00:03]}  Bd5 {[%clk 0:00:22]} 71. Ra5 {[%clk 0:00:04]}  Rh8+ {[%clk 0:00:22]} 72. Kg3 {[%clk 0:00:04]}  Rf8 {[%clk 0:00:23]} 73. Rb5 {[%clk 0:00:03]}  Kd6 {[%clk 0:00:22]} 74. Ra5 {[%clk 0:00:04]}  Rg8+ {[%clk 0:00:21]} 75. Kh2 {[%clk 0:00:04]}  Rg4 {[%clk 0:00:18]} 76. Ra6+ {[%clk 0:00:04]}  Ke5 {[%clk 0:00:19]} 77. Ra5 {[%clk 0:00:04]}  f4 {[%clk 0:00:19]} 78. exf4+ {[%clk 0:00:04]}  Rxf4 {[%clk 0:00:20]} 79. Kg3 {[%clk 0:00:04]}  Rf7 {[%clk 0:00:20]} 80. Rb5 {[%clk 0:00:02]}  Kd4 {[%clk 0:00:21]} 81. Rb4+ {[%clk 0:00:02]}  Bc4 {[%clk 0:00:21]} 82. Rb8 {[%clk 0:00:02]}  Bd3 {[%clk 0:00:21]} 83. Rd8+ {[%clk 0:00:02]}  Kc3 {[%clk 0:00:20]} 84. Re8 {[%clk 0:00:02]}  Kd2 {[%clk 0:00:20]} 85. Ra8 {[%clk 0:00:02]}  Rg7+ {[%clk 0:00:17]} 86. Kh2 {[%clk 0:00:01]}  Bf1 {[%clk 0:00:18]} 87. Kg1 {[%clk 0:00:01]}  Bxg2 {[%clk 0:00:17]} 88. Ra2+ {[%clk 0:00:01]}  Kc3 {[%clk 0:00:18]} 89. Ra3+ {[%clk 0:00:01]}  Kd4 {[%clk 0:00:18]} 90. Ra4+ {[%clk 0:00:01]}  Kd3 {[%clk 0:00:19]} 91. Ra3+ {[%clk 0:00:01]}  Kc4 {[%clk 0:00:19]} 0-1


[Site "https://www.chess.com"]

[Event "Titled Tuesday Blitz February 28 Early 2023"]
[White "Al-Tarboush, Ward"]
[Black "Srebrnic, Marko"]
[WhiteFideId "7601450"]
[BlackFideId "14603616"]
[WhiteElo "2267"]
[BlackElo "2341"]
[Result "1-0"]
[Round "06"]
[TimeControl "180+2"]
[Date "2023.02.28"]
[WhiteClock "0:01:35"]
[BlackClock "0:00:08"]

1. e4 {[%clk 0:03:00]}  c5 {[%clk 0:02:59]} 2. Nf3 {[%clk 0:03:01]}  e6 {[%clk 0:02:57]} 3. d4 {[%clk 0:03:01]}  cxd4 {[%clk 0:02:58]} 4. Nxd4 {[%clk 0:03:01]}  a6 {[%clk 0:02:58]} 5. Bd3 {[%clk 0:03:01]}  Qc7 {[%clk 0:02:53]} 6. O-O {[%clk 0:02:59]}  Nf6 {[%clk 0:02:49]} 7. c4 {[%clk 0:02:58]}  Nc6 {[%clk 0:02:46]} 8. Nxc6 {[%clk 0:02:59]}  bxc6 {[%clk 0:02:46]} 9. Nc3 {[%clk 0:02:59]}  e5 {[%clk 0:02:47]} 10. f4 {[%clk 0:02:57]}  Bc5+ {[%clk 0:02:46]} 11. Kh1 {[%clk 0:02:57]}  d6 {[%clk 0:02:46]} 12. f5 {[%clk 0:02:57]}  h5 {[%clk 0:02:45]} 13. Bg5 {[%clk 0:02:56]}  Ng4 {[%clk 0:02:45]} 14. Qf3 {[%clk 0:02:54]}  Rb8 {[%clk 0:02:35]} 15. Na4 {[%clk 0:02:47]}  Bd4 {[%clk 0:02:33]} 16. f6 {[%clk 0:02:39]}  g6 {[%clk 0:02:31]} 17. Rab1 {[%clk 0:02:31]}  Qa5 {[%clk 0:02:17]} 18. b3 {[%clk 0:02:28]}  Bd7 {[%clk 0:01:50]} 19. Qe2 {[%clk 0:02:25]}  c5 {[%clk 0:01:44]} 20. h3 {[%clk 0:02:24]}  Kd8 {[%clk 0:01:32]} 21. g3 {[%clk 0:02:23]}  Kc7 {[%clk 0:01:22]} 22. hxg4 {[%clk 0:02:20]}  Bxg4 {[%clk 0:01:22]} 23. Qd2 {[%clk 0:02:19]}  Qxd2 {[%clk 0:01:10]} 24. Bxd2 {[%clk 0:02:20]}  h4 {[%clk 0:01:10]} 25. Kg2 {[%clk 0:02:15]}  hxg3 {[%clk 0:01:08]} 26. Rh1 {[%clk 0:02:12]}  Rh2+ {[%clk 0:01:04]} 27. Rxh2 {[%clk 0:02:10]}  gxh2 {[%clk 0:01:05]} 28. Kxh2 {[%clk 0:02:10]}  Rh8+ {[%clk 0:00:57]} 29. Kg3 {[%clk 0:02:09]}  Bd7 {[%clk 0:00:49]} 30. Kg2 {[%clk 0:02:00]}  Bh3+ {[%clk 0:00:43]} 31. Kf3 {[%clk 0:01:56]}  Bd7 {[%clk 0:00:39]} 32. Bf1 {[%clk 0:01:51]}  Rh1 {[%clk 0:00:37]} 33. Nc3 {[%clk 0:01:47]}  Kc6 {[%clk 0:00:25]} 34. Bg2 {[%clk 0:01:43]}  Rh4 {[%clk 0:00:22]} 35. Nd5 {[%clk 0:01:37]}  a5 {[%clk 0:00:16]} 36. Rh1 {[%clk 0:01:36]}  Rg4 {[%clk 0:00:14]} 37. Bh3 {[%clk 0:01:35]}  Rg1 {[%clk 0:00:08]} 38. Bxd7+ {[%clk 0:01:35]}  Kxd7 {[%clk 0:00:09]} 39. Rxg1 {[%clk 0:01:36]}  Bxg1 {[%clk 0:00:10]} 40. Bxa5 {[%clk 0:01:36]}  Ke6 {[%clk 0:00:09]} 41. Bd2 {[%clk 0:01:36]}  Bd4 {[%clk 0:00:09]} 42. Kg4 {[%clk 0:01:35]}  Bb2 {[%clk 0:00:08]} 43. a4 {[%clk 0:01:35]}  Kd7 {[%clk 0:00:07]} 44. a5 {[%clk 0:01:35]}  Kc6 {[%clk 0:00:08]} 45. a6 {[%clk 0:01:36]}  Bd4 {[%clk 0:00:08]} 46. Kg5 {[%clk 0:01:35]}  Bf2 {[%clk 0:00:08]} 47. Kh6 {[%clk 0:01:36]}  Be1 {[%clk 0:00:08]} 48. Bxe1 {[%clk 0:01:35]} 1-0


[Site "https://www.chess.com"]

[Event "Titled Tuesday Blitz February 28 Early 2023"]
[White "Dinu, Dumitru-Daniel"]
[Black "Mamedov, Edgar"]
[WhiteFideId "1208403"]
[BlackFideId "13739980"]
[WhiteElo "2240"]
[BlackElo "2330"]
[Result "0-1"]
[Round "06"]
[TimeControl "180+2"]
[Date "2023.02.28"]
[WhiteClock "0:00:07"]
[BlackClock "0:00:08"]

1. e4 {[%clk 0:03:00]}  c5 {[%clk 0:03:00]} 2. b3 {[%clk 0:03:00]}  g6 {[%clk 0:02:57]} 3. Bb2 {[%clk 0:02:59]}  Nf6 {[%clk 0:02:57]} 4. Nc3 {[%clk 0:02:57]}  Bg7 {[%clk 0:02:54]} 5. Nge2 {[%clk 0:02:54]}  Nxe4 {[%clk 0:02:50]} 6. Nxe4 {[%clk 0:02:54]}  Bxb2 {[%clk 0:02:50]} 7. Rb1 {[%clk 0:02:55]}  Bg7 {[%clk 0:02:49]} 8. Nxc5 {[%clk 0:02:55]}  O-O {[%clk 0:02:49]} 9. Nd3 {[%clk 0:02:54]}  e5 {[%clk 0:02:46]} 10. g3 {[%clk 0:02:52]}  d5 {[%clk 0:02:43]} 11. Bg2 {[%clk 0:02:52]}  Nc6 {[%clk 0:02:41]} 12. O-O {[%clk 0:02:51]}  Bf5 {[%clk 0:02:35]} 13. Nc3 {[%clk 0:02:35]}  Ne7 {[%clk 0:02:23]} 14. Re1 {[%clk 0:02:18]}  Rc8 {[%clk 0:02:16]} 15. Rc1 {[%clk 0:01:59]}  e4 {[%clk 0:02:14]} 16. Nf4 {[%clk 0:01:55]}  Bxc3 {[%clk 0:02:13]} 17. dxc3 {[%clk 0:01:56]}  Rxc3 {[%clk 0:02:13]} 18. Qd4 {[%clk 0:01:51]}  Qc7 {[%clk 0:01:55]} 19. Nxd5 {[%clk 0:01:43]}  Nxd5 {[%clk 0:01:54]} 20. Qxd5 {[%clk 0:01:41]}  Rd8 {[%clk 0:01:49]} 21. Qb5 {[%clk 0:01:40]}  a6 {[%clk 0:01:40]} 22. Qe2 {[%clk 0:01:38]}  Rc8 {[%clk 0:01:24]} 23. a4 {[%clk 0:01:21]}  e3 {[%clk 0:01:15]} 24. fxe3 {[%clk 0:01:20]}  Bxc2 {[%clk 0:01:14]} 25. Bh3 {[%clk 0:01:09]}  Rd8 {[%clk 0:01:03]} 26. b4 {[%clk 0:00:48]}  Bxa4 {[%clk 0:01:01]} 27. Qb2 {[%clk 0:00:44]}  Rxc1 {[%clk 0:00:44]} 28. Rxc1 {[%clk 0:00:44]}  Qe7 {[%clk 0:00:42]} 29. Qc3 {[%clk 0:00:40]}  Bc6 {[%clk 0:00:40]} 30. Bg2 {[%clk 0:00:36]}  Bxg2 {[%clk 0:00:35]} 31. Kxg2 {[%clk 0:00:37]}  Qe4+ {[%clk 0:00:34]} 32. Kg1 {[%clk 0:00:36]}  Rd3 {[%clk 0:00:34]} 33. Qc8+ {[%clk 0:00:35]}  Kg7 {[%clk 0:00:34]} 34. Re1 {[%clk 0:00:23]}  Qxb4 {[%clk 0:00:23]} 35. Re2 {[%clk 0:00:22]}  Qe4 {[%clk 0:00:21]} 36. Qc1 {[%clk 0:00:20]}  Qe5 {[%clk 0:00:19]} 37. e4 {[%clk 0:00:20]}  Qd4+ {[%clk 0:00:18]} 38. Kg2 {[%clk 0:00:20]}  Rd1 {[%clk 0:00:18]} 39. Qf4 {[%clk 0:00:19]}  Qg1+ {[%clk 0:00:17]} 40. Kh3 {[%clk 0:00:20]}  Qf1+ {[%clk 0:00:17]} 41. Qxf1 {[%clk 0:00:19]}  Rxf1 {[%clk 0:00:18]} 42. Rb2 {[%clk 0:00:20]}  Re1 {[%clk 0:00:15]} 43. Rxb7 {[%clk 0:00:17]}  Rxe4 {[%clk 0:00:15]} 44. Ra7 {[%clk 0:00:18]}  Re6 {[%clk 0:00:14]} 45. Kg2 {[%clk 0:00:18]}  h5 {[%clk 0:00:14]} 46. Kf3 {[%clk 0:00:18]}  g5 {[%clk 0:00:14]} 47. h3 {[%clk 0:00:16]}  Kg6 {[%clk 0:00:14]} 48. Ra8 {[%clk 0:00:15]}  Rb6 {[%clk 0:00:11]} 49. Rg8+ {[%clk 0:00:14]}  Kf5 {[%clk 0:00:11]} 50. g4+ {[%clk 0:00:14]}  hxg4+ {[%clk 0:00:11]} 51. hxg4+ {[%clk 0:00:14]}  Kf6 {[%clk 0:00:11]} 52. Ra8 {[%clk 0:00:14]}  Rb3+ {[%clk 0:00:11]} 53. Kf2 {[%clk 0:00:14]}  Ra3 {[%clk 0:00:10]} 54. Ra7 {[%clk 0:00:14]}  Ke6 {[%clk 0:00:10]} 55. Kg2 {[%clk 0:00:13]}  f6 {[%clk 0:00:09]} 56. Kf2 {[%clk 0:00:13]}  Ke5 {[%clk 0:00:09]} 57. Kg2 {[%clk 0:00:09]}  Kf4 {[%clk 0:00:09]} 58. Rf7 {[%clk 0:00:09]}  Kxg4 {[%clk 0:00:09]} 59. Rxf6 {[%clk 0:00:10]}  Ra2+ {[%clk 0:00:09]} 60. Kg1 {[%clk 0:00:10]}  Kg3 {[%clk 0:00:09]} 61. Kf1 {[%clk 0:00:08]}  g4 {[%clk 0:00:09]} 62. Rg6 {[%clk 0:00:07]}  a5 {[%clk 0:00:09]} 63. Ra6 {[%clk 0:00:06]}  a4 {[%clk 0:00:08]} 64. Ra5 {[%clk 0:00:06]}  a3 {[%clk 0:00:08]} 65. Ra4 {[%clk 0:00:06]}  Ra1+ {[%clk 0:00:08]} 66. Ke2 {[%clk 0:00:07]}  a2 {[%clk 0:00:08]} 67. Ra3+ {[%clk 0:00:07]}  Kh4 {[%clk 0:00:08]} 0-1


[Site "https://www.chess.com"]

[Event "Titled Tuesday Blitz February 28 Early 2023"]
[White "Avazkhonov, Alikhon"]
[Black "Gabdrakhmanov, Azat"]
[WhiteFideId "14208504"]
[BlackFideId "34189197"]
[WhiteElo "1739"]
[BlackElo "2315"]
[Result "0-1"]
[Round "06"]
[TimeControl "180+2"]
[Date "2023.02.28"]
[WhiteClock "0:00:02"]
[BlackClock "0:00:04"]

1. d4 {[%clk 0:03:00]}  Nf6 {[%clk 0:02:59]} 2. c4 {[%clk 0:03:01]}  g6 {[%clk 0:02:59]} 3. Nc3 {[%clk 0:03:01]}  Bg7 {[%clk 0:03:00]} 4. e4 {[%clk 0:03:02]}  O-O {[%clk 0:03:01]} 5. f3 {[%clk 0:03:03]}  d6 {[%clk 0:03:01]} 6. Be3 {[%clk 0:03:03]}  a6 {[%clk 0:03:02]} 7. Qd2 {[%clk 0:03:03]}  c6 {[%clk 0:03:02]} 8. c5 {[%clk 0:02:43]}  b5 {[%clk 0:03:01]} 9. cxb6 {[%clk 0:02:43]}  Nbd7 {[%clk 0:03:00]} 10. Bc4 {[%clk 0:02:31]}  d5 {[%clk 0:02:51]} 11. exd5 {[%clk 0:02:07]}  Nxb6 {[%clk 0:02:50]} 12. Bb3 {[%clk 0:02:08]}  Nbxd5 {[%clk 0:02:37]} 13. Nxd5 {[%clk 0:02:02]}  Nxd5 {[%clk 0:02:33]} 14. Bh6 {[%clk 0:02:02]}  Bxh6 {[%clk 0:02:15]} 15. Qxh6 {[%clk 0:02:03]}  e5 {[%clk 0:02:15]} 16. O-O-O {[%clk 0:01:27]}  Qb6 {[%clk 0:00:57]} 17. h4 {[%clk 0:00:52]}  exd4 {[%clk 0:00:54]} 18. h5 {[%clk 0:00:51]}  Bf5 {[%clk 0:00:53]} 19. hxg6 {[%clk 0:00:45]}  Qc5+ {[%clk 0:00:44]} 20. Kd2 {[%clk 0:00:32]}  Bxg6 {[%clk 0:00:42]} 21. Ne2 {[%clk 0:00:27]}  Rfe8 {[%clk 0:00:21]} 22. Ng3 {[%clk 0:00:16]}  d3 {[%clk 0:00:18]} 23. Ne4 {[%clk 0:00:06]}  Qb4+ {[%clk 0:00:04]} 24. Kc1 {[%clk 0:00:06]}  Rxe4 {[%clk 0:00:04]} 25. fxe4 {[%clk 0:00:06]}  Qxe4 {[%clk 0:00:05]} 26. Rd2 {[%clk 0:00:04]}  Re8 {[%clk 0:00:04]} 27. Qh4 {[%clk 0:00:03]}  Qe5 {[%clk 0:00:03]} 28. Bd1 {[%clk 0:00:02]}  Ne3 {[%clk 0:00:03]} 29. Qb4 {[%clk 0:00:01]}  Nxd1 {[%clk 0:00:03]} 30. Rhxd1 {[%clk 0:00:02]}  c5 {[%clk 0:00:03]} 31. Qc3 {[%clk 0:00:02]}  Qd5 {[%clk 0:00:03]} 32. a3 {[%clk 0:00:02]}  c4 {[%clk 0:00:04]} 33. Qb4 {[%clk 0:00:02]}  Rc8 {[%clk 0:00:04]} 34. Qc3 {[%clk 0:00:02]}  h5 {[%clk 0:00:04]} 35. g3 {[%clk 0:00:02]}  Rb8 {[%clk 0:00:04]} 36. Qf6 {[%clk 0:00:02]}  a5 {[%clk 0:00:04]} 37. Rf2 {[%clk 0:00:02]}  Qb5 {[%clk 0:00:03]} 38. Qc3 {[%clk 0:00:01]}  Qa6 {[%clk 0:00:03]} 39. Rf4 {[%clk 0:00:02]}  Rc8 {[%clk 0:00:02]} 40. Rd4 {[%clk 0:00:03]}  a4 {[%clk 0:00:03]} 41. Rd5 {[%clk 0:00:03]}  Qe6 {[%clk 0:00:03]} 42. Re5 {[%clk 0:00:03]}  Qf6 {[%clk 0:00:03]} 43. Ra5 {[%clk 0:00:03]}  d2+ {[%clk 0:00:03]} 44. Qxd2 {[%clk 0:00:02]}  Qf5 {[%clk 0:00:04]} 0-1


[Site "https://www.chess.com"]

[Event "Titled Tuesday Blitz February 28 Early 2023"]
[White "Toktomushev, Teimur"]
[Black "Yaran, Siar"]
[WhiteFideId "14176726"]
[BlackFideId "6323006"]
[WhiteElo "2106"]
[BlackElo "2191"]
[Result "0-1"]
[Round "06"]
[TimeControl "180+2"]
[Date "2023.02.28"]
[WhiteClock "0:00:01"]
[BlackClock "0:00:43"]

1. d4 {[%clk 0:03:00]}  Nf6 {[%clk 0:02:59]} 2. c4 {[%clk 0:03:00]}  e6 {[%clk 0:02:59]} 3. Nf3 {[%clk 0:03:00]}  d5 {[%clk 0:03:00]} 4. Nc3 {[%clk 0:02:58]}  Be7 {[%clk 0:03:00]} 5. cxd5 {[%clk 0:02:40]}  exd5 {[%clk 0:03:01]} 6. Bg5 {[%clk 0:02:40]}  c6 {[%clk 0:03:01]} 7. e3 {[%clk 0:02:39]}  Bf5 {[%clk 0:03:01]} 8. Bd3 {[%clk 0:02:38]}  Bxd3 {[%clk 0:02:59]} 9. Qxd3 {[%clk 0:02:39]}  Nbd7 {[%clk 0:02:59]} 10. O-O {[%clk 0:02:39]}  O-O {[%clk 0:03:00]} 11. Rab1 {[%clk 0:02:23]}  a5 {[%clk 0:02:57]} 12. a3 {[%clk 0:02:20]}  Re8 {[%clk 0:02:57]} 13. Nd2 {[%clk 0:02:19]}  a4 {[%clk 0:02:47]} 14. f3 {[%clk 0:02:08]}  c5 {[%clk 0:02:36]} 15. Rbe1 {[%clk 0:02:01]}  Qb6 {[%clk 0:02:25]} 16. Qb5 {[%clk 0:01:51]}  Qxb5 {[%clk 0:01:49]} 17. Nxb5 {[%clk 0:01:52]}  Ra5 {[%clk 0:01:49]} 18. Nc3 {[%clk 0:01:46]}  Bf8 {[%clk 0:01:44]} 19. Kf2 {[%clk 0:01:27]}  b5 {[%clk 0:01:44]} 20. dxc5 {[%clk 0:00:49]}  Bxc5 {[%clk 0:01:34]} 21. Kg3 {[%clk 0:00:35]}  b4 {[%clk 0:01:23]} 22. axb4 {[%clk 0:00:33]}  Bxb4 {[%clk 0:01:23]} 23. Bxf6 {[%clk 0:00:04]}  Nxf6 {[%clk 0:01:21]} 24. e4 {[%clk 0:00:04]}  a3 {[%clk 0:01:08]} 25. exd5 {[%clk 0:00:01]}  Rxe1 {[%clk 0:00:56]} 26. Rxe1 {[%clk 0:00:01]}  axb2 {[%clk 0:00:56]} 27. Ncb1 {[%clk 0:00:01]}  Rxd5 {[%clk 0:00:54]} 28. Re2 {[%clk 0:00:01]}  h5 {[%clk 0:00:52]} 29. Ne4 {[%clk 0:00:01]}  Nxe4+ {[%clk 0:00:44]} 30. fxe4 {[%clk 0:00:02]}  Rd3+ {[%clk 0:00:44]} 31. Kf2 {[%clk 0:00:02]}  Rb3 {[%clk 0:00:44]} 32. Re3 {[%clk 0:00:01]}  Bc5 {[%clk 0:00:43]} 0-1


[Site "https://www.chess.com"]

[Event "Titled Tuesday Blitz February 28 Early 2023"]
[White "Andreev, Konstantin"]
[Black "Williams, Simon K"]
[WhiteFideId "24239305"]
[BlackFideId "404454"]
[WhiteElo "2106"]
[BlackElo "2468"]
[Result "0-1"]
[Round "06"]
[TimeControl "180+2"]
[Date "2023.02.28"]
[WhiteClock "0:01:00"]
[BlackClock "0:00:15"]

1. e4 {[%clk 0:03:00]}  c5 {[%clk 0:02:59]} 2. Nf3 {[%clk 0:03:01]}  d6 {[%clk 0:02:58]} 3. d4 {[%clk 0:03:01]}  cxd4 {[%clk 0:02:58]} 4. Nxd4 {[%clk 0:03:02]}  Nf6 {[%clk 0:02:58]} 5. Nc3 {[%clk 0:03:03]}  g6 {[%clk 0:02:58]} 6. Be3 {[%clk 0:03:01]}  a6 {[%clk 0:02:50]} 7. f3 {[%clk 0:03:00]}  h5 {[%clk 0:02:47]} 8. Qd2 {[%clk 0:03:00]}  Bg7 {[%clk 0:02:47]} 9. Bc4 {[%clk 0:03:01]}  Qc7 {[%clk 0:02:45]} 10. Bb3 {[%clk 0:03:01]}  Nc6 {[%clk 0:02:31]} 11. O-O-O {[%clk 0:03:01]}  Ne5 {[%clk 0:02:31]} 12. Kb1 {[%clk 0:03:01]}  Nc4 {[%clk 0:02:29]} 13. Bxc4 {[%clk 0:03:01]}  Qxc4 {[%clk 0:02:29]} 14. h4 {[%clk 0:03:02]}  b5 {[%clk 0:02:28]} 15. Nce2 {[%clk 0:02:46]}  b4 {[%clk 0:02:02]} 16. Rc1 {[%clk 0:02:36]}  e5 {[%clk 0:01:39]} 17. Nb3 {[%clk 0:02:34]}  O-O {[%clk 0:01:35]} 18. Qxd6 {[%clk 0:02:17]}  Qxe2 {[%clk 0:01:29]} 19. Rhe1 {[%clk 0:02:14]}  Qb5 {[%clk 0:01:23]} 20. c4 {[%clk 0:02:13]}  bxc3 {[%clk 0:01:22]} 21. Rxc3 {[%clk 0:02:14]}  Be6 {[%clk 0:01:11]} 22. Rd1 {[%clk 0:02:03]}  Rab8 {[%clk 0:00:55]} 23. Rc5 {[%clk 0:01:53]}  Qe2 {[%clk 0:00:54]} 24. Rd3 {[%clk 0:01:51]}  Rfd8 {[%clk 0:00:42]} 25. Qxd8+ {[%clk 0:01:48]}  Rxd8 {[%clk 0:00:42]} 26. Rxd8+ {[%clk 0:01:48]}  Kh7 {[%clk 0:00:43]} 27. Bg5 {[%clk 0:01:47]}  Nxe4 {[%clk 0:00:35]} 28. fxe4 {[%clk 0:01:37]}  Qxe4+ {[%clk 0:00:35]} 29. Ka1 {[%clk 0:01:27]}  Qxg2 {[%clk 0:00:34]} 30. Rd2 {[%clk 0:01:23]}  Qf3 {[%clk 0:00:30]} 31. Rc3 {[%clk 0:01:22]}  Qf1+ {[%clk 0:00:28]} 32. Rc1 {[%clk 0:01:22]}  Qb5 {[%clk 0:00:28]} 33. Nc5 {[%clk 0:01:20]}  Bf5 {[%clk 0:00:20]} 34. a4 {[%clk 0:01:12]}  Qb4 {[%clk 0:00:20]} 35. b3 {[%clk 0:01:09]}  Qa3+ {[%clk 0:00:18]} 36. Ra2 {[%clk 0:01:07]}  e4+ {[%clk 0:00:15]} 37. Kb1 {[%clk 0:01:00]}  e3+ {[%clk 0:00:15]} 0-1


[Site "https://www.chess.com"]

[Event "Titled Tuesday Blitz February 28 Early 2023"]
[White "Prieto Aranguren, Alain"]
[Black "Mayank Chakraborty"]
[WhiteFideId "2268906"]
[BlackFideId "25659766"]
[WhiteElo "2209"]
[BlackElo "2103"]
[Result "0-1"]
[Round "06"]
[TimeControl "180+2"]
[Date "2023.02.28"]
[WhiteClock "0:00:29"]
[BlackClock "0:00:14"]

1. d4 {[%clk 0:03:00]}  Nf6 {[%clk 0:02:58]} 2. c4 {[%clk 0:03:00]}  e6 {[%clk 0:02:58]} 3. Nc3 {[%clk 0:02:58]}  Bb4 {[%clk 0:02:59]} 4. e3 {[%clk 0:02:58]}  O-O {[%clk 0:02:58]} 5. Nf3 {[%clk 0:02:57]}  b6 {[%clk 0:02:58]} 6. Bd3 {[%clk 0:02:56]}  Bb7 {[%clk 0:02:58]} 7. O-O {[%clk 0:02:55]}  d5 {[%clk 0:02:56]} 8. cxd5 {[%clk 0:02:54]}  exd5 {[%clk 0:02:57]} 9. Ne5 {[%clk 0:02:50]}  Nbd7 {[%clk 0:02:50]} 10. f4 {[%clk 0:02:48]}  c5 {[%clk 0:02:49]} 11. Bd2 {[%clk 0:02:48]}  cxd4 {[%clk 0:02:45]} 12. exd4 {[%clk 0:02:47]}  a5 {[%clk 0:02:33]} 13. Be1 {[%clk 0:02:46]}  Ne4 {[%clk 0:02:28]} 14. Nxe4 {[%clk 0:02:44]}  dxe4 {[%clk 0:02:26]} 15. Bc4 {[%clk 0:02:42]}  Nxe5 {[%clk 0:02:25]} 16. fxe5 {[%clk 0:02:39]}  Bxe1 {[%clk 0:02:03]} 17. Rxe1 {[%clk 0:02:38]}  Kh8 {[%clk 0:01:57]} 18. Rf1 {[%clk 0:02:31]}  f5 {[%clk 0:01:55]} 19. d5 {[%clk 0:02:22]}  Qc7 {[%clk 0:01:54]} 20. Qd4 {[%clk 0:02:12]}  Rad8 {[%clk 0:01:52]} 21. Rac1 {[%clk 0:02:02]}  Qf7 {[%clk 0:01:31]} 22. Rfd1 {[%clk 0:01:50]}  b5 {[%clk 0:01:24]} 23. e6 {[%clk 0:01:42]}  Qe8 {[%clk 0:01:04]} 24. Bb3 {[%clk 0:01:31]}  a4 {[%clk 0:01:01]} 25. Rc7 {[%clk 0:01:23]}  Rg8 {[%clk 0:01:01]} 26. Rxb7 {[%clk 0:01:05]}  axb3 {[%clk 0:01:01]} 27. axb3 {[%clk 0:01:04]}  Qg6 {[%clk 0:00:47]} 28. e7 {[%clk 0:00:57]}  Rc8 {[%clk 0:00:39]} 29. d6 {[%clk 0:00:46]}  Rc2 {[%clk 0:00:18]} 30. Rd2 {[%clk 0:00:46]}  Rc1+ {[%clk 0:00:17]} 31. Kf2 {[%clk 0:00:47]}  f4 {[%clk 0:00:15]} 32. Re2 {[%clk 0:00:29]}  e3+ {[%clk 0:00:15]} 33. Kf3 {[%clk 0:00:29]}  Rf1+ {[%clk 0:00:14]} 0-1


[Site "https://www.chess.com"]